[Event "*** Titled Tuesday Blitz"]
[Site "Chess.com"]
[Date "2020.05.26"]
[Round "4"]
[White "Paralinch"]
[Black "Sankalp_Gupta2003"]
[Result "1-0"]
[WhiteElo "2883"]
[BlackElo "2703"]
[TimeControl "180+1"]
[EndTime "10:39:49 PDT"]
[Termination "Paralinch won on time"]

1. e4 {[%clk 0:03:00.9]} 1... c6 {[%clk 0:02:54.9]} 2. d4 {[%clk 0:03:00.9]}
2... d6 {[%clk 0:02:53.6]} 3. Nf3 {[%clk 0:02:54]} 3... g6 {[%clk 0:02:52.9]} 4.
Bd3 {[%clk 0:02:46.8]} 4... Bg7 {[%clk 0:02:52.8]} 5. O-O {[%clk 0:02:47.3]}
5... Bg4 {[%clk 0:02:51.8]} 6. c3 {[%clk 0:02:46.5]} 6... Nd7 {[%clk 0:02:51.1]}
7. Nbd2 {[%clk 0:02:46.4]} 7... e5 {[%clk 0:02:42]} 8. h3 {[%clk 0:02:46]} 8...
Bxf3 {[%clk 0:02:41.2]} 9. Nxf3 {[%clk 0:02:46.9]} 9... Ne7 {[%clk 0:02:41]} 10.
Qb3 {[%clk 0:02:44.8]} 10... Qb6 {[%clk 0:02:37.1]} 11. Be3 {[%clk 0:02:37.4]}
11... Qxb3 {[%clk 0:02:22.6]} 12. axb3 {[%clk 0:02:37.1]} 12... a6 {[%clk
0:02:23.5]} 13. dxe5 {[%clk 0:02:31.4]} 13... Nxe5 {[%clk 0:02:24.4]} 14. Nxe5
{[%clk 0:02:31.4]} 14... dxe5 {[%clk 0:02:25.3]} 15. Rfd1 {[%clk 0:02:27.3]}
15... O-O-O {[%clk 0:02:24.5]} 16. Bc4 {[%clk 0:02:24]} 16... f5 {[%clk
0:01:37.7]} 17. Bb6 {[%clk 0:02:10.3]} 17... Rxd1+ {[%clk 0:01:31.2]} 18. Rxd1
{[%clk 0:02:11.2]} 18... fxe4 {[%clk 0:01:23.6]} 19. Be6+ {[%clk 0:02:11.3]}
19... Kb8 {[%clk 0:01:19.7]} 20. Rd7 {[%clk 0:02:12.2]} 20... Bf6 {[%clk
0:01:19]} 21. g4 {[%clk 0:01:54.6]} 21... Nd5 {[%clk 0:01:10.5]} 22. Bxd5 {[%clk
0:01:54.1]} 22... cxd5 {[%clk 0:01:11.4]} 23. Rxd5 {[%clk 0:01:55]} 23... Kc8
{[%clk 0:01:08.1]} 24. Kf1 {[%clk 0:01:39.5]} 24... Re8 {[%clk 0:01:06.4]} 25.
c4 {[%clk 0:01:30.3]} 25... Re6 {[%clk 0:00:43]} 26. c5 {[%clk 0:01:30.3]} 26...
Bg5 {[%clk 0:00:41.9]} 27. Ke2 {[%clk 0:01:29]} 27... Re8 {[%clk 0:00:34.5]} 28.
Rd6 {[%clk 0:01:17.5]} 28... Bf4 {[%clk 0:00:34.5]} 29. h4 {[%clk 0:01:15.1]}
29... Rg8 {[%clk 0:00:29.8]} 30. b4 {[%clk 0:01:14.2]} 30... h5 {[%clk
0:00:29.7]} 31. g5 {[%clk 0:01:13.7]} 31... e3 {[%clk 0:00:22]} 32. Rf6 {[%clk
0:00:47.1]} 32... exf2 {[%clk 0:00:18.3]} 33. Kxf2 {[%clk 0:00:48]} 33... Bd2
{[%clk 0:00:16.7]} 34. b5 {[%clk 0:00:38.8]} 34... axb5 {[%clk 0:00:16.5]} 35.
Ke2 {[%clk 0:00:39.2]} 35... Bf4 {[%clk 0:00:16.7]} 36. Kf3 {[%clk 0:00:38.9]}
36... b4 {[%clk 0:00:16.5]} 37. b3 {[%clk 0:00:38.2]} 37... Bd2 {[%clk
0:00:14.9]} 38. Ke2 {[%clk 0:00:36.8]} 38... Bf4 {[%clk 0:00:14.9]} 39. Kf2
{[%clk 0:00:31.3]} 39... Bd2 {[%clk 0:00:13.1]} 40. Rf7 {[%clk 0:00:30.1]} 40...
Bf4 {[%clk 0:00:12.3]} 41. Kf3 {[%clk 0:00:28.6]} 41... Bd2 {[%clk 0:00:12.1]}
42. Kf2 {[%clk 0:00:24.2]} 42... Re8 {[%clk 0:00:08.1]} 43. Rf6 {[%clk
0:00:20.7]} 43... Rg8 {[%clk 0:00:08]} 44. Re6 {[%clk 0:00:20.1]} 44... Bf4
{[%clk 0:00:08.3]} 45. Re7 {[%clk 0:00:20.5]} 45... Rf8 {[%clk 0:00:06.3]} 46.
Kg2 {[%clk 0:00:15]} 46... Rg8 {[%clk 0:00:06.6]} 47. Rc7+ {[%clk 0:00:14.9]}
47... Kb8 {[%clk 0:00:06.6]} 48. Re7 {[%clk 0:00:14.9]} 48... Kc8 {[%clk
0:00:07.1]} 49. Kf3 {[%clk 0:00:15.3]} 49... Rf8 {[%clk 0:00:07.3]} 50. Ke4
{[%clk 0:00:13.7]} 50... Bg3 {[%clk 0:00:07.8]} 51. Rc7+ {[%clk 0:00:14]} 51...
Kb8 {[%clk 0:00:07.9]} 52. Rg7 {[%clk 0:00:14.9]} 52... Bxh4 {[%clk 0:00:07.4]}
53. Rxg6 {[%clk 0:00:15.4]} 53... Bg3 {[%clk 0:00:07.7]} 54. Rh6 {[%clk
0:00:15.7]} 54... h4 {[%clk 0:00:08.1]} 55. g6 {[%clk 0:00:16.3]} 55... Rf4+
{[%clk 0:00:06.1]} 56. Kd5 {[%clk 0:00:15.8]} 56... Rd4+ {[%clk 0:00:05.8]} 57.
Ke6 {[%clk 0:00:16.2]} 1-0

[Event "*** Titled Tuesday Blitz"]
[Site "Chess.com"]
[Date "2020.05.26"]
[Round "4"]
[White "EvgenyRomanov"]
[Black "ljuks68"]
[Result "0-1"]
[WhiteElo "2641"]
[BlackElo "2336"]
[TimeControl "180+1"]
[EndTime "10:39:58 PDT"]
[Termination "ljuks68 won by resignation"]

1. e4 {[%clk 0:03:00.9]} 1... e6 {[%clk 0:02:59.6]} 2. d4 {[%clk 0:03:00.2]}
2... d5 {[%clk 0:02:58.9]} 3. e5 {[%clk 0:03:00.9]} 3... c5 {[%clk 0:02:58.7]}
4. c3 {[%clk 0:03:01.3]} 4... Nc6 {[%clk 0:02:59]} 5. Nf3 {[%clk 0:03:01.3]}
5... Qb6 {[%clk 0:02:59.4]} 6. Be2 {[%clk 0:03:01.5]} 6... cxd4 {[%clk
0:02:58.9]} 7. cxd4 {[%clk 0:03:01.5]} 7... Nh6 {[%clk 0:02:59.4]} 8. Nc3 {[%clk
0:02:54.5]} 8... Nf5 {[%clk 0:02:58]} 9. Na4 {[%clk 0:02:45.4]} 9... Bb4+ {[%clk
0:02:32]} 10. Kf1 {[%clk 0:02:45]} 10... Qc7 {[%clk 0:02:30]} 11. g4 {[%clk
0:02:40.5]} 11... Nfe7 {[%clk 0:02:22.5]} 12. a3 {[%clk 0:02:39.7]} 12... Ba5
{[%clk 0:02:22.4]} 13. b4 {[%clk 0:02:38.6]} 13... Bb6 {[%clk 0:02:22.7]} 14.
Be3 {[%clk 0:02:35.1]} 14... O-O {[%clk 0:02:22.1]} 15. Rc1 {[%clk 0:02:33.7]}
15... a6 {[%clk 0:02:16.9]} 16. Bd3 {[%clk 0:02:30.6]} 16... f6 {[%clk
0:02:13.8]} 17. exf6 {[%clk 0:02:21.3]} 17... Rxf6 {[%clk 0:02:12.7]} 18. Ne5
{[%clk 0:02:11.8]} 18... Ba7 {[%clk 0:02:02.1]} 19. Kg2 {[%clk 0:02:06]} 19...
Qb8 {[%clk 0:01:15.3]} 20. Re1 {[%clk 0:01:49.8]} 20... Nxe5 {[%clk 0:01:00.4]}
21. dxe5 {[%clk 0:01:49]} 21... Rf7 {[%clk 0:01:00.8]} 22. Nb6 {[%clk 0:01:38]}
22... Bxb6 {[%clk 0:00:58.1]} 23. Bxb6 {[%clk 0:01:38.9]} 23... Bd7 {[%clk
0:00:52.1]} 24. Qc2 {[%clk 0:01:28.7]} 24... g6 {[%clk 0:00:46.6]} 25. Qc7
{[%clk 0:01:11.8]} 25... Bb5 {[%clk 0:00:41.8]} 26. Qxb8+ {[%clk 0:00:59.3]}
26... Rxb8 {[%clk 0:00:41.3]} 27. Bxb5 {[%clk 0:00:57.1]} 27... axb5 {[%clk
0:00:41.1]} 28. Rc5 {[%clk 0:00:57.5]} 28... Ra8 {[%clk 0:00:34.6]} 29. Re3
{[%clk 0:00:57.4]} 29... d4 {[%clk 0:00:21]} 30. Re4 {[%clk 0:00:33.4]} 30...
Rxa3 {[%clk 0:00:03.9]} 31. Rc7 {[%clk 0:00:25.8]} 31... Nc6 {[%clk 0:00:02.3]}
32. Rxf7 {[%clk 0:00:22.7]} 32... Kxf7 {[%clk 0:00:02.5]} 33. Bxd4 {[%clk
0:00:23.5]} 33... Nxd4 {[%clk 0:00:01.9]} 34. Rxd4 {[%clk 0:00:23.4]} 34... Ke7
{[%clk 0:00:02]} 35. f4 {[%clk 0:00:22]} 35... Ra2+ {[%clk 0:00:01.5]} 36. Kg3
{[%clk 0:00:22.1]} 36... Rb2 {[%clk 0:00:01.8]} 37. h3 {[%clk 0:00:20.7]} 37...
Rb3+ {[%clk 0:00:02.1]} 38. Kh4 {[%clk 0:00:20.9]} 38... h6 {[%clk 0:00:02.6]}
39. Re4 {[%clk 0:00:20.2]} 39... Rc3 {[%clk 0:00:01.9]} 40. Rd4 {[%clk
0:00:20.2]} 40... Rb3 {[%clk 0:00:02]} 41. f5 {[%clk 0:00:17.3]} 41... gxf5
{[%clk 0:00:01.7]} 42. gxf5 {[%clk 0:00:18.2]} 42... exf5 {[%clk 0:00:02]} 43.
Rf4 {[%clk 0:00:18.5]} 43... Ke6 {[%clk 0:00:02.4]} 44. Rf1 {[%clk 0:00:18.2]}
44... Kxe5 {[%clk 0:00:02.9]} 45. Re1+ {[%clk 0:00:18]} 45... Kf6 {[%clk
0:00:03.5]} 46. Rf1 {[%clk 0:00:18.1]} 46... Rxb4+ {[%clk 0:00:03.9]} 47. Kh5
{[%clk 0:00:18]} 47... Rb3 {[%clk 0:00:04.6]} 48. h4 {[%clk 0:00:18.6]} 48...
Rh3 {[%clk 0:00:04.3]} 49. Rf4 {[%clk 0:00:17.8]} 49... b6 {[%clk 0:00:03.9]}
50. Rb4 {[%clk 0:00:17.4]} 50... Rc3 {[%clk 0:00:03.8]} 51. Kxh6 {[%clk
0:00:16.5]} 51... Rc6 {[%clk 0:00:04.7]} 52. h5 {[%clk 0:00:15.6]} 52... Rc8
{[%clk 0:00:04.4]} 53. Kh7 {[%clk 0:00:15.4]} 53... Kg5 {[%clk 0:00:04.4]} 54.
h6 {[%clk 0:00:13.8]} 54... Rc7+ {[%clk 0:00:04.2]} 55. Kg8 {[%clk 0:00:13.9]}
55... Kxh6 {[%clk 0:00:04.2]} 56. Rxb5 {[%clk 0:00:14.5]} 56... Kg5 {[%clk
0:00:04.3]} 57. Rxb6 {[%clk 0:00:14.8]} 57... f4 {[%clk 0:00:04.5]} 58. Rb1
{[%clk 0:00:12.8]} 58... Kg4 {[%clk 0:00:05.3]} 59. Rg1+ {[%clk 0:00:12.9]}
59... Kf3 {[%clk 0:00:05.5]} 60. Rf1+ {[%clk 0:00:13.5]} 60... Ke3 {[%clk
0:00:06.2]} 61. Re1+ {[%clk 0:00:13.8]} 61... Kf2 {[%clk 0:00:06.6]} 62. Re5
{[%clk 0:00:13.2]} 62... f3 {[%clk 0:00:06.7]} 63. Rg5 {[%clk 0:00:11]} 63...
Kf1 {[%clk 0:00:06.5]} 64. Rf5 {[%clk 0:00:10.7]} 64... f2 {[%clk 0:00:06.6]}
65. Re5 {[%clk 0:00:10.4]} 65... Rc4 {[%clk 0:00:06]} 0-1

[Event "*** Titled Tuesday Blitz"]
[Site "Chess.com"]
[Date "2020.05.26"]
[Round "4"]
[White "FranciscodelaF"]
[Black "NotFischer"]
[Result "0-1"]
[WhiteElo "2360"]
[BlackElo "2144"]
[TimeControl "180+1"]
[EndTime "10:39:58 PDT"]
[Termination "NotFischer won by resignation"]

1. d4 {[%clk 0:03:00.9]} 1... g6 {[%clk 0:03:00.6]} 2. c4 {[%clk 0:03:00.8]}
2... Bg7 {[%clk 0:03:01.3]} 3. Nf3 {[%clk 0:02:56.7]} 3... d6 {[%clk 0:03:01.4]}
4. Nc3 {[%clk 0:02:54.8]} 4... Bg4 {[%clk 0:03:00.9]} 5. g3 {[%clk 0:02:53.6]}
5... Nc6 {[%clk 0:03:00]} 6. d5 {[%clk 0:02:52.5]} 6... Bxf3 {[%clk 0:02:56.5]}
7. exf3 {[%clk 0:02:53.4]} 7... Nd4 {[%clk 0:02:55.6]} 8. Bg2 {[%clk 0:02:49.5]}
8... c5 {[%clk 0:02:52.4]} 9. dxc6 {[%clk 0:02:45.9]} 9... Nxc6 {[%clk
0:02:51.5]} 10. O-O {[%clk 0:02:43.2]} 10... Nf6 {[%clk 0:02:52]} 11. f4 {[%clk
0:02:42.4]} 11... Rc8 {[%clk 0:02:50.9]} 12. b3 {[%clk 0:02:38.4]} 12... O-O
{[%clk 0:02:45.3]} 13. Be3 {[%clk 0:02:33.8]} 13... Qa5 {[%clk 0:02:31]} 14. Rc1
{[%clk 0:02:33.6]} 14... Rfd8 {[%clk 0:02:15]} 15. h3 {[%clk 0:02:23.1]} 15...
a6 {[%clk 0:01:56.2]} 16. Qd2 {[%clk 0:02:13.2]} 16... b5 {[%clk 0:01:33.3]} 17.
Bxc6 {[%clk 0:02:07.3]} 17... Rxc6 {[%clk 0:01:31.6]} 18. Nd5 {[%clk 0:02:06]}
18... Qxd2 {[%clk 0:01:29.9]} 19. Nxe7+ {[%clk 0:02:04.9]} 19... Kf8 {[%clk
0:01:28.6]} 20. Nxc6 {[%clk 0:02:01.9]} 20... Qxa2 {[%clk 0:01:18]} 21. Nxd8
{[%clk 0:02:00.8]} 21... Qxb3 {[%clk 0:01:14.6]} 22. cxb5 {[%clk 0:02:01]} 22...
axb5 {[%clk 0:01:12.7]} 23. Rfd1 {[%clk 0:01:59.2]} 23... Ne4 {[%clk 0:01:10]}
24. Nc6 {[%clk 0:01:57.9]} 24... Nxg3 {[%clk 0:01:02.6]} 25. Rb1 {[%clk
0:01:50.1]} 25... Ne2+ {[%clk 0:01:01.9]} 26. Kg2 {[%clk 0:01:40.9]} 26... Qc4
{[%clk 0:00:53.9]} 27. Nb4 {[%clk 0:01:36.2]} 27... Nxf4+ {[%clk 0:00:53.1]} 28.
Bxf4 {[%clk 0:01:34.7]} 28... Qxf4 {[%clk 0:00:52.9]} 29. Nd5 {[%clk 0:01:35.5]}
29... Qg5+ {[%clk 0:00:51.6]} 30. Kf1 {[%clk 0:01:35.5]} 30... Be5 {[%clk
0:00:51]} 31. Rxb5 {[%clk 0:01:33.2]} 31... Qh5 {[%clk 0:00:45.9]} 32. Rd3
{[%clk 0:01:31.4]} 32... Kg7 {[%clk 0:00:39.2]} 33. Rb4 {[%clk 0:01:19.6]} 33...
Qf5 {[%clk 0:00:38.4]} 34. Rbb3 {[%clk 0:01:16.7]} 34... h5 {[%clk 0:00:33.4]}
35. Ne7 {[%clk 0:01:06]} 35... Qe4 {[%clk 0:00:29.9]} 36. Nd5 {[%clk 0:01:02.8]}
36... Qh1+ {[%clk 0:00:29.3]} 37. Ke2 {[%clk 0:01:03.1]} 37... Qg2 {[%clk
0:00:29.4]} 38. Rf3 {[%clk 0:01:00.9]} 38... f5 {[%clk 0:00:27.6]} 39. Rb7+
{[%clk 0:00:57.1]} 39... Kh6 {[%clk 0:00:27.9]} 40. Ne7 {[%clk 0:00:42.3]} 40...
Kg5 {[%clk 0:00:17.3]} 41. Rb4 {[%clk 0:00:39.5]} 41... Kf6 {[%clk 0:00:15.3]}
42. Nd5+ {[%clk 0:00:36.7]} 42... Ke6 {[%clk 0:00:15.6]} 43. Nc7+ {[%clk
0:00:36]} 43... Kd7 {[%clk 0:00:16.1]} 44. Rc4 {[%clk 0:00:34.6]} 44... g5
{[%clk 0:00:12.6]} 45. Nb5 {[%clk 0:00:31.5]} 45... g4 {[%clk 0:00:11.7]} 46.
hxg4 {[%clk 0:00:31.6]} 46... fxg4 {[%clk 0:00:12]} 47. Re3 {[%clk 0:00:24.2]}
47... g3 {[%clk 0:00:09.2]} 48. Rf3 {[%clk 0:00:22.9]} 48... gxf2 {[%clk
0:00:08.4]} 49. Rxf2 {[%clk 0:00:23.3]} 49... Qd5 {[%clk 0:00:08.6]} 50. Rb4
{[%clk 0:00:20.6]} 50... Qc5 {[%clk 0:00:06.1]} 51. Rb3 {[%clk 0:00:10.8]} 51...
Qc4+ {[%clk 0:00:03.3]} 52. Kf3 {[%clk 0:00:10.5]} 52... Qxb3+ {[%clk
0:00:03.1]} 53. Kg2 {[%clk 0:00:11.4]} 53... Qxb5 {[%clk 0:00:03.4]} 54. Rf7+
{[%clk 0:00:12.3]} 54... Ke6 {[%clk 0:00:02.8]} 55. Rf6+ {[%clk 0:00:13.2]}
55... Kd5 {[%clk 0:00:03.3]} 56. Rf2 {[%clk 0:00:12.8]} 56... Qc4 {[%clk
0:00:03.2]} 57. Rd2+ {[%clk 0:00:13.1]} 57... Qd4 {[%clk 0:00:04.1]} 58. Rf2
{[%clk 0:00:13]} 58... Qe4+ {[%clk 0:00:04.4]} 59. Rf3 {[%clk 0:00:13.3]} 59...
Qxf3+ {[%clk 0:00:04.2]} 60. Kxf3 {[%clk 0:00:14.2]} 60... Kc4 {[%clk
0:00:04.4]} 61. Ke2 {[%clk 0:00:15.1]} 61... d5 {[%clk 0:00:05.1]} 62. Kf3
{[%clk 0:00:16]} 62... d4 {[%clk 0:00:05.8]} 63. Ke2 {[%clk 0:00:16.9]} 63...
d3+ {[%clk 0:00:06.6]} 64. Kd1 {[%clk 0:00:17.8]} 64... Kd4 {[%clk 0:00:06.8]}
65. Kd2 {[%clk 0:00:18.7]} 65... Bf4+ {[%clk 0:00:07.1]} 66. Kd1 {[%clk
0:00:19.6]} 66... Kc3 {[%clk 0:00:07.6]} 67. Ke1 {[%clk 0:00:20.5]} 67... d2+
{[%clk 0:00:07.9]} 68. Kd1 {[%clk 0:00:21.4]} 68... Be3 {[%clk 0:00:07.3]} 69.
Ke2 {[%clk 0:00:22.3]} 69... Kc2 {[%clk 0:00:07.8]} 70. Kxe3 {[%clk 0:00:22.5]}
70... d1=Q {[%clk 0:00:08.7]} 71. Kf4 {[%clk 0:00:22.5]} 71... Qd3 {[%clk
0:00:09.6]} 72. Kg5 {[%clk 0:00:23.4]} 72... Kc3 {[%clk 0:00:10.3]} 73. Kh4
{[%clk 0:00:23.6]} 73... Kd4 {[%clk 0:00:11.2]} 74. Kxh5 {[%clk 0:00:24]} 74...
Qe4 {[%clk 0:00:12.1]} 75. Kh6 {[%clk 0:00:23.6]} 75... Ke5 {[%clk 0:00:13]} 76.
Kg7 {[%clk 0:00:24.5]} 76... Qf3 {[%clk 0:00:13.3]} 77. Kh8 {[%clk 0:00:25.4]}
77... Qf6+ {[%clk 0:00:13.3]} 78. Kg8 {[%clk 0:00:26.3]} 78... Qe7 {[%clk
0:00:12.9]} 79. Kh8 {[%clk 0:00:24.8]} 79... Kf6 {[%clk 0:00:13.2]} 80. Kg8
{[%clk 0:00:24.6]} 80... Kg6 {[%clk 0:00:14.1]} 0-1

[Event "*** Titled Tuesday Blitz"]
[Site "Chess.com"]
[Date "2020.05.26"]
[Round "4"]
[White "eCztery"]
[Black "Igor_Lysyj"]
[Result "0-1"]
[WhiteElo "2340"]
[BlackElo "2768"]
[TimeControl "180+1"]
[EndTime "10:39:59 PDT"]
[Termination "Igor_Lysyj won by resignation"]

1. e4 {[%clk 0:03:00.9]} 1... e5 {[%clk 0:02:59.3]} 2. Nf3 {[%clk 0:03:00]} 2...
Nc6 {[%clk 0:02:58.8]} 3. d4 {[%clk 0:02:58.7]} 3... exd4 {[%clk 0:02:57.3]} 4.
Nxd4 {[%clk 0:02:59.6]} 4... Nf6 {[%clk 0:02:56.7]} 5. Nc3 {[%clk 0:02:57.1]}
5... Bc5 {[%clk 0:02:54.4]} 6. Nb3 {[%clk 0:02:50.2]} 6... Bb4 {[%clk
0:02:52.7]} 7. Bd3 {[%clk 0:02:44.5]} 7... O-O {[%clk 0:02:51.2]} 8. O-O {[%clk
0:02:43.8]} 8... d6 {[%clk 0:02:46.3]} 9. Bg5 {[%clk 0:02:37.9]} 9... h6 {[%clk
0:02:45.5]} 10. Bh4 {[%clk 0:02:30.3]} 10... Bxc3 {[%clk 0:02:40.4]} 11. bxc3
{[%clk 0:02:31.2]} 11... Ne5 {[%clk 0:02:34.2]} 12. f4 {[%clk 0:02:25.7]} 12...
Ng6 {[%clk 0:02:32]} 13. Bg3 {[%clk 0:02:26.2]} 13... Bg4 {[%clk 0:02:28.9]} 14.
Qd2 {[%clk 0:02:22.5]} 14... Nh5 {[%clk 0:02:28.7]} 15. Rae1 {[%clk 0:02:07.1]}
15... Nxg3 {[%clk 0:02:25.3]} 16. hxg3 {[%clk 0:02:08]} 16... c6 {[%clk
0:02:18]} 17. Nd4 {[%clk 0:02:03.8]} 17... Re8 {[%clk 0:02:04.6]} 18. f5 {[%clk
0:01:50.2]} 18... Ne5 {[%clk 0:02:04.1]} 19. Qf4 {[%clk 0:01:43.4]} 19... Qg5
{[%clk 0:02:00.8]} 20. Nf3 {[%clk 0:01:21.9]} 20... Bxf3 {[%clk 0:01:43]} 21.
Qxg5 {[%clk 0:01:14]} 21... hxg5 {[%clk 0:01:41.5]} 22. gxf3 {[%clk 0:01:14.9]}
22... g4 {[%clk 0:01:37.2]} 23. fxg4 {[%clk 0:01:12.3]} 23... Nxg4 {[%clk
0:01:36.9]} 24. Kg2 {[%clk 0:01:10.1]} 24... Kf8 {[%clk 0:01:30.8]} 25. Rf4
{[%clk 0:01:06.3]} 25... Ne5 {[%clk 0:01:29.8]} 26. Rh1 {[%clk 0:01:06.8]} 26...
Ke7 {[%clk 0:01:29.3]} 27. Rh7 {[%clk 0:01:05.5]} 27... Kf6 {[%clk 0:01:23.6]}
28. Rfh4 {[%clk 0:00:50.4]} 28... g6 {[%clk 0:00:45.9]} 29. g4 {[%clk
0:00:40.6]} 29... Rf8 {[%clk 0:00:41.5]} 30. Kg3 {[%clk 0:00:37.4]} 30... b5
{[%clk 0:00:38.7]} 31. R4h6 {[%clk 0:00:32.3]} 31... Kg5 {[%clk 0:00:31]} 32.
Be2 {[%clk 0:00:17.7]} 32... a5 {[%clk 0:00:29.9]} 33. Rh1 {[%clk 0:00:14.5]}
33... a4 {[%clk 0:00:27.1]} 34. Rd1 {[%clk 0:00:14.4]} 34... Rad8 {[%clk
0:00:26.5]} 35. Rh2 {[%clk 0:00:13]} 35... Kf6 {[%clk 0:00:23.6]} 36. Rf1 {[%clk
0:00:11.7]} 36... Kg5 {[%clk 0:00:22.3]} 37. Rhf2 {[%clk 0:00:10.3]} 37... Rh8
{[%clk 0:00:21.2]} 38. fxg6 {[%clk 0:00:07.7]} 38... fxg6 {[%clk 0:00:20.9]} 39.
Rh2 {[%clk 0:00:05.9]} 39... Rxh2 {[%clk 0:00:20.1]} 40. Kxh2 {[%clk 0:00:06.8]}
40... Rh8+ {[%clk 0:00:17.3]} 41. Kg3 {[%clk 0:00:06.5]} 41... Re8 {[%clk
0:00:16.9]} 42. Rd1 {[%clk 0:00:06.3]} 42... Re6 {[%clk 0:00:16.9]} 43. Bf3
{[%clk 0:00:05.5]} 43... Nd7 {[%clk 0:00:15.8]} 44. Rh1 {[%clk 0:00:04.2]} 44...
Nc5 {[%clk 0:00:15.4]} 45. Rh7 {[%clk 0:00:03]} 45... Nxe4+ {[%clk 0:00:14.9]}
46. Bxe4 {[%clk 0:00:03.9]} 46... Rxe4 {[%clk 0:00:15.1]} 47. Rd7 {[%clk
0:00:04.8]} 47... Rc4 {[%clk 0:00:15.1]} 48. Kf2 {[%clk 0:00:05.3]} 48... Rxc3
{[%clk 0:00:15.3]} 49. Rxd6 {[%clk 0:00:05.8]} 49... Rxc2+ {[%clk 0:00:15.6]}
50. Ke3 {[%clk 0:00:06.2]} 50... Rxa2 {[%clk 0:00:15.5]} 51. Rxc6 {[%clk
0:00:06.5]} 51... Ra3+ {[%clk 0:00:14.5]} 52. Kd4 {[%clk 0:00:06]} 52... Rb3
{[%clk 0:00:14.5]} 53. Ra6 {[%clk 0:00:03.1]} 53... a3 {[%clk 0:00:13.2]} 54.
Kc5 {[%clk 0:00:03.5]} 54... b4 {[%clk 0:00:13]} 55. Kc4 {[%clk 0:00:04.4]}
55... Rb2 {[%clk 0:00:13.2]} 56. Kd4 {[%clk 0:00:03.4]} 56... a2 {[%clk
0:00:13.1]} 57. Kc4 {[%clk 0:00:03.4]} 57... b3 {[%clk 0:00:12.8]} 58. Kc3
{[%clk 0:00:03.8]} 58... Rb1 {[%clk 0:00:12.8]} 59. Ra5+ {[%clk 0:00:03.9]}
59... Kxg4 {[%clk 0:00:12.2]} 60. Ra4+ {[%clk 0:00:04.8]} 60... Kh5 {[%clk
0:00:12]} 61. Ra5+ {[%clk 0:00:04.6]} 61... g5 {[%clk 0:00:12.1]} 62. Kd2 {[%clk
0:00:04.6]} 62... a1=Q {[%clk 0:00:11.4]} 0-1

[Event "*** Titled Tuesday Blitz"]
[Site "Chess.com"]
[Date "2020.05.26"]
[Round "4"]
[White "TranJMinh"]
[Black "Anna_ChessMate"]
[Result "1-0"]
[WhiteElo "2794"]
[BlackElo "2533"]
[TimeControl "180+1"]
[EndTime "10:40:03 PDT"]
[Termination "TranJMinh won on time"]

1. d4 {[%clk 0:03:00.9]} 1... d5 {[%clk 0:02:58.6]} 2. c4 {[%clk 0:03:00.7]}
2... c6 {[%clk 0:02:58.5]} 3. Nc3 {[%clk 0:03:00.5]} 3... Nf6 {[%clk 0:02:58]}
4. cxd5 {[%clk 0:03:00.4]} 4... cxd5 {[%clk 0:02:58.4]} 5. Bf4 {[%clk 0:03:01]}
5... Nc6 {[%clk 0:02:55]} 6. e3 {[%clk 0:03:01.5]} 6... Bf5 {[%clk 0:02:54.6]}
7. Qb3 {[%clk 0:03:01]} 7... Na5 {[%clk 0:02:54.4]} 8. Qa4+ {[%clk 0:03:01.5]}
8... Bd7 {[%clk 0:02:53.9]} 9. Qc2 {[%clk 0:03:02.1]} 9... e6 {[%clk 0:02:54.1]}
10. Bd3 {[%clk 0:03:01.8]} 10... Be7 {[%clk 0:02:54.6]} 11. Nf3 {[%clk
0:03:01.8]} 11... Nc6 {[%clk 0:02:54.4]} 12. Qe2 {[%clk 0:03:01.3]} 12... Nh5
{[%clk 0:02:48.9]} 13. Be5 {[%clk 0:03:00.8]} 13... f6 {[%clk 0:02:47.4]} 14.
Bg3 {[%clk 0:03:00]} 14... f5 {[%clk 0:02:47]} 15. Be5 {[%clk 0:02:39.9]} 15...
O-O {[%clk 0:02:44.7]} 16. a3 {[%clk 0:02:38.2]} 16... Rc8 {[%clk 0:02:42]} 17.
h3 {[%clk 0:02:36.5]} 17... Nf6 {[%clk 0:02:41.9]} 18. Bh2 {[%clk 0:02:33.5]}
18... Ne4 {[%clk 0:02:41.6]} 19. Rc1 {[%clk 0:02:30.7]} 19... Qa5 {[%clk
0:02:36.6]} 20. O-O {[%clk 0:02:27.3]} 20... Be8 {[%clk 0:02:20.2]} 21. Nd2
{[%clk 0:02:18.5]} 21... Bf7 {[%clk 0:02:10.4]} 22. f3 {[%clk 0:02:04.3]} 22...
Nxc3 {[%clk 0:02:09.3]} 23. Rxc3 {[%clk 0:02:05.2]} 23... Rcd8 {[%clk
0:01:53.9]} 24. Rfc1 {[%clk 0:02:01]} 24... Bf6 {[%clk 0:01:45.8]} 25. Kh1
{[%clk 0:01:16.1]} 25... Rd7 {[%clk 0:01:40.8]} 26. Nb3 {[%clk 0:01:11.2]} 26...
Qd8 {[%clk 0:01:36.1]} 27. Nc5 {[%clk 0:01:10.8]} 27... Re7 {[%clk 0:01:36.1]}
28. Nxb7 {[%clk 0:01:07.7]} 28... Rxb7 {[%clk 0:01:37]} 29. Rxc6 {[%clk
0:01:07.5]} 29... g6 {[%clk 0:01:12.6]} 30. Ba6 {[%clk 0:01:07.2]} 30... Rb3
{[%clk 0:01:02]} 31. Bc7 {[%clk 0:00:50.9]} 31... Qd7 {[%clk 0:00:57.2]} 32. Bd6
{[%clk 0:00:38.2]} 32... Re8 {[%clk 0:00:47.1]} 33. a4 {[%clk 0:00:34.1]} 33...
e5 {[%clk 0:00:44.7]} 34. dxe5 {[%clk 0:00:20.1]} 34... Bxe5 {[%clk 0:00:44.9]}
35. Bxe5 {[%clk 0:00:19.3]} 35... Rxe5 {[%clk 0:00:45.8]} 36. Bd3 {[%clk
0:00:05.9]} 36... d4 {[%clk 0:00:43]} 37. e4 {[%clk 0:00:06.2]} 37... fxe4
{[%clk 0:00:35.4]} 38. Bxe4 {[%clk 0:00:07.1]} 38... d3 {[%clk 0:00:34.5]} 39.
Qd2 {[%clk 0:00:06.5]} 39... Kg7 {[%clk 0:00:31.6]} 40. Rc7 {[%clk 0:00:06.5]}
40... Qd4 {[%clk 0:00:30]} 41. Qf4 {[%clk 0:00:06.3]} 41... Rf5 {[%clk
0:00:26.7]} 42. Qd2 {[%clk 0:00:03.6]} 42... Rf6 {[%clk 0:00:21.9]} 43. R1c3
{[%clk 0:00:02.7]} 43... Rxc3 {[%clk 0:00:18.2]} 44. Rxc3 {[%clk 0:00:03.6]}
44... Qxa4 {[%clk 0:00:16.6]} 45. Rxd3 {[%clk 0:00:04.3]} 45... Qa1+ {[%clk
0:00:16.1]} 46. Kh2 {[%clk 0:00:04.8]} 46... Qa6 {[%clk 0:00:16.2]} 47. Rd7
{[%clk 0:00:04]} 47... Qe6 {[%clk 0:00:16]} 48. Qd4 {[%clk 0:00:03.9]} 48... Kg8
{[%clk 0:00:08.9]} 49. Rd8+ {[%clk 0:00:03.7]} 49... Kg7 {[%clk 0:00:07.9]} 50.
Rd7 {[%clk 0:00:04.3]} 50... Kh6 {[%clk 0:00:06.4]} 51. Rxa7 {[%clk 0:00:04.6]}
51... Rf4 {[%clk 0:00:04.8]} 52. Rd7 {[%clk 0:00:04.4]} 52... Be8 {[%clk
0:00:02.9]} 53. Rd6 {[%clk 0:00:04.3]} 53... Qf7 {[%clk 0:00:02.6]} 54. b4
{[%clk 0:00:04.9]} 54... Bb5 {[%clk 0:00:00.7]} 55. Qd2 {[%clk 0:00:05]} 1-0